{"text_format":"1","workbook":"xlsx","n_sheets":2,"sheets":["Wirtschaftlichkeitslücke","Einnahmen und Ausgaben"],"not_rendered":{"charts":0,"images":10,"macros":1,"external_links":0,"defined_names":0,"comments":0,"pivot_tables":0},"unopened":[],"bounds":{"document_bytes":16777216,"sheet_cells":100000,"rows_first":2000,"rows_last":500,"rows_between":2000,"halvings":0,"cell_chars":16384,"cell_head_chars":4096},"cells_cut":0,"cells_raw":0,"read":"whole","date_system":"1900"}

{"sheet":"Wirtschaftlichkeitslücke","index":0,"n_rows":42,"n_cols":14,"rows_kept":42,"cut":false,"hidden":false,"merged":[[6,1,6,8],[7,1,7,8],[9,4,29,8],[0,0,0,8],[4,1,4,8],[3,1,3,8],[2,1,2,8]]}
["Angaben zur Wirtschaftlichkeitslücke                             (Version vom 29.02.2016)"]
[]
["TK-Anbieter"]
["Landkreis"]
["Ausbaugebiet"]
[]
["verwendete Technologien zur Backbone-Anbindung"]
["verwendete Technologien zur Anbindung der Haushalte "]
[]
["Netzaufbau","vor Inbetrieb-nahme","Einheiten","Abweichung von ø-Kosten","Bitte füllen Sie alle für Ihr Projekt relevanten Daten in die grün gefärbten Felder ein. Einnahmen wie Ausgaben sind immer als positiver Wert einzugeben. \n\nWird nach der Eingabe der Hardware im Bereich Netzaufbau eines oder mehrere Felder in der Spalte Abweichung von ø-Kosten rot, ist zusätzlich eine schriftliche Erklärung für die Abweichung abzugeben.\n\nBitte füllen Sie auch das Tabellenblatt \"Einnahmen und Ausgaben\" aus.\n\n\n\n\n\n\n\n\n\n"]
["Tiefbauarbeiten","Summe","Meter / Anzahl","Kosten / Einheit",null,null,null,null,null,null,null,"ø-Kosten","ø-Kosten - 15%","ø-Kosten + 15%"]
["Unversiegelt",0,0,{"$f":"IF(B12=0,0)+IF(C12>0,B12/C12)","v":0},null,null,null,null,null,null,"ø-Kosten Tiefbau unversiegelt [€/m]",25.31,{"$f":"L12*0.85","v":21.513499999999997},{"$f":"L12*1.15","v":29.106499999999997}]
["Versiegelt",0,0,{"$f":"IF(B13=0,0)+IF(C13>0,B13/C13)","v":0},null,null,null,null,null,null,"ø-Kosten Tiefbau versiegelt [€/m]",79.77,{"$f":"L13*0.85","v":67.80449999999999},{"$f":"L13*1.15","v":91.735499999999988}]
["Sonstige Tiefbaukosten",0]
["Passive Infrastruktur"]
["Oberirdische Leitungsverläufe",0,0,{"$f":"IF(B16=0,0)+IF(C16>0,B16/C16)","v":0}]
["Leerrohr",0,0,{"$f":"IF(B17=0,0)+IF(C17>0,B17/C17)","v":0},null,null,null,null,null,null,"ø-Kosten Leerrohre [€/m]",6,{"$f":"L17*0.85","v":5.0999999999999996},{"$f":"L17*1.15","v":6.8999999999999995}]
["Masten",0,0,{"$f":"IF(B18=0,0)+IF(C18>0,B18/C18)","v":0}]
["Glasfaser",0,0,{"$f":"IF(B19=0,0)+IF(C19>0,B19/C19)","v":0},null,null,null,null,null,null,"ø-Kosten Glasfaser [€/m]",5.53,{"$f":"L19*0.85","v":4.7004999999999999},{"$f":"L19*1.15","v":6.3594999999999997}]
["Kosten Hausanschlüsse/ Schächte/ Verzweiger/ Splitter/ sonst. Abschlusseinrichtungen",0,0,{"$f":"IF(B20=0,0)+IF(C20>0,B20/C20)","v":0}]
["Sonstige Kosten für passive Infrastruktur",0]
["Aktive Infrastruktur"]
["DSLAMS",0,0,{"$f":"IF(B23=0,0)+IF(C23>0,B23/C23)","v":0},null,null,null,null,null,null,"ø-Kosten DSLAM [€/Stk.]",18509.46,{"$f":"L23*0.85","v":15733.040999999999},{"$f":"L23*1.15","v":21285.878999999997}]
["Sender/Empfänger Einheit",0,0,{"$f":"IF(B24=0,0)+IF(C24>0,B24/C24)","v":0}]
["POP / GPON",0,0,{"$f":"IF(B25=0,0)+IF(C25>0,B25/C25)","v":0}]
["Sonstige Kosten für aktive Infrastruktur",0]
["Summe Investitionskosten",{"$f":"SUM(B12:B14,B16:B21,B23:B26)","v":0}]
["darin enthaltene Investitionskosten für die Errichtung der Infrastruktur durch einen Dritten mit anschließender entgeltlicher Nutzungsüberlassung an den Netzbetreiber",0]
["verbleiben maximal umlegungsfähig",{"$f":"B27-B28","v":0}]
["davon in die Wirtschaftlichkeitslücke umgelegt",{"$f":"B29","v":0}]
[]
["Barwert Einnahmen (Übertrag Einnahmen & Ausgaben)",{"$f":"'Einnahmen und Ausgaben'!B25","v":0}]
["Barwert Kosten (Übertrag Einnahmen & Ausgaben)",{"$f":"'Einnahmen und Ausgaben'!B26","v":0}]
[]
[]
["Wirtschaftlichkeitslücke ",{"$f":"B33-B32","v":0}]
[]
[]
[]
[]
[]
["In den hellgrau hinterlegten Zellen haben Sie die Möglichkeit eigene Eingaben zu tätigen"]

{"sheet":"Einnahmen und Ausgaben","index":1,"n_rows":30,"n_cols":32,"rows_kept":30,"cut":false,"hidden":false,"merged":[[13,0,13,31],[5,0,5,31],[22,0,22,1],[23,0,23,1],[0,0,0,6]]}
["Angaben zu Einnahmen und Ausgaben"]
[]
["Kundenzahlen","Ausbaujahr / Jahr 0","Jahr 1","Jahr 2","Jahr 3","Jahr 4","Jahr 5","Jahr 6","Jahr 7","Jahr 8","Jahr 9","Jahr 10","Jahr 11","Jahr 12","Jahr 13","Jahr 14","Jahr 15","Jahr 16","Jahr 17","Jahr 18","Jahr 19","Jahr 20","Jahr 21","Jahr 22","Jahr 23","Jahr 24","Jahr 25","Jahr 26","Jahr 27","Jahr 28","Jahr 29","Jahr 30"]
["Anzahl Bestandskunden",0,{"$f":"B4+B5","v":0},{"$f":"C4+C5","v":0},0,0,0,0,0,0,0,0,0,0,0,0,0,0,0,0,0,0,0,0,0,0,0,0,0,0,0,0]
["Neukunden im laufenden Jahr",null,0,0,0,0,0,0,0,0,0,0,0,0,0,0,0,0,0,0,0,0,0,0,0,0,0,0,0,0,0,0]
[]
["Netzbetrieb: Alle Einnahmen im Rahmen der vorbezeichneten Nutzungsverhältnisse:","Ausbaujahr / Jahr 0","Jahr 1","Jahr 2","Jahr 3","Jahr 4","Jahr 5","Jahr 6","Jahr 7","Jahr 8","Jahr 9","Jahr 10","Jahr 11","Jahr 12","Jahr 13","Jahr 14","Jahr 15","Jahr 16","Jahr 17","Jahr 18","Jahr 19","Jahr 20","Jahr 21","Jahr 22","Jahr 23","Jahr 24","Jahr 25","Jahr 26","Jahr 27","Jahr 28","Jahr 29","Jahr 30"]
["Einnahmen durch vorhandene Kunden",null,0,0,0,0,0,0,0,0,0,0,0,0,0,0,0,0,0,0,0,0,0,0,0,0,0,0,0,0,0,0]
["Einnahmen durch neue Kunden",null,0,0,0,0,0,0,0,0,0,0,0,0,0,0,0,0,0,0,0,0,0,0,0,0,0,0,0,0,0,0]
["Einnahmen aus der Nutzungsüberlassung an Dritte",null,0,0,0,0,0,0,0,0,0,0,0,0,0,0,0,0,0,0,0,0,0,0,0,0,0,0,0,0,0,0]
["Erwartete Einnahmen aus Vermarktung von Vorleistungsprodukten",null,0,0,0,0,0,0,0,0,0,0,0,0,0,0,0,0,0,0,0,0,0,0,0,0,0,0,0,0,0,0]
["Sonstige erwartete Einnahmen im Rahmen des Vorhabens, z.B. Erlöse aus Verkauf im Bereich der errichteten Infrastruktur",null,0,0,0,0,0,0,0,0,0,0,0,0,0,0,0,0,0,0,0,0,0,0,0,0,0,0,0,0,0,0]
["Summe der Einnahmen",null,{"$f":"SUM(C8:C12)","v":0},{"$f":"SUM(D8:D12)","v":0},0,0,0,0,0,0,0,0,0,0,0,0,0,0,0,0,0,0,0,0,0,0,0,0,0,0,0,{"$f":"SUM(AF8:AF12)","v":0}]
[]
["Netzbetrieb: Kosten",null,"Jahr 1","Jahr 2","Jahr 3","Jahr 4","Jahr 5","Jahr 6","Jahr 7","Jahr 8","Jahr 9","Jahr 10","Jahr 11","Jahr 12","Jahr 13","Jahr 14","Jahr 15","Jahr 16","Jahr 17","Jahr 18","Jahr 19","Jahr 20","Jahr 21","Jahr 22","Jahr 23","Jahr 24","Jahr 25","Jahr 26","Jahr 27","Jahr 28","Jahr 29","Jahr 30"]
["Kosten für Vorleistungsprodukte",null,0,0,0,0,0,0,0,0,0,0,0,0,0,0,0,0,0,0,0,0,0,0,0,0,0,0,0,0,0,0]
["Unmittelbare Betriebskosten der errichteten Infrastruktur",null,0,0,0,0,0,0,0,0,0,0,0,0,0,0,0,0,0,0,0,0,0,0,0,0,0,0,0,0,0,0]
["Sonstige operative Betriebskosten",null,0,0,0,0,0,0,0,0,0,0,0,0,0,0,0,0,0,0,0,0,0,0,0,0,0,0,0,0,0,0]
["Finanzierungskosten (ohne Tilgung)",null,0,0,0,0,0,0,0,0,0,0,0,0,0,0,0,0,0,0,0,0,0,0,0,0,0,0,0,0,0,0]
["Übertrag: in die Wirtschaftlichkeitslücke umgelegte Investitionskosten",null,{"$f":"Wirtschaftlichkeitslücke!B30","v":0}]
["Anteil der Gesamtkosten, der dem Anteil von nicht mit mind. 50 Mbit/s versorgten Haushalten im Planungsgebiet entspricht",null,0,0,0,0,0,0,0,0,0,0,0,0,0,0,0,0,0,0,0,0,0,0,0,0,0,0,0,0,0,0]
["Summe der zu berücksichtigenden Kosten",null,{"$f":"SUM(C16:C20)-C21","v":0},{"$f":"SUM(D16:D19)-D21","v":0},{"$f":"SUM(E16:E19)-E21","v":0},0,0,0,0,0,0,0,0,0,0,0,0,0,0,0,0,0,0,0,0,0,0,0,0,0,0,0]
["Abzinsungssatz",null,0,0,0,0,0,0,0,0,0,0,0,0,0,0,0,0,0,0,0,0,0,0,0,0,0,0,0,0,0,0]
["Barwertfaktor",null,{"$f":"1/((1+C23)^C27)","v":1},{"$f":"1/((1+D23)^D27)","v":1},{"$f":"1/((1+E23)^E27)","v":1},1,1,1,1,1,1,1,1,1,1,1,1,1,1,1,1,1,1,1,1,1,1,1,1,1,1,1]
["Barwert (Einnahmen)",{"$f":"SUM(C25:AF25)","v":0},{"$f":"C13*C24","v":0},0,0,0,0,0,0,0,0,0,0,0,0,0,0,0,0,0,0,0,0,0,0,0,0,0,0,0,0,0]
["Barwert (Kosten)",{"$f":"SUM(C26:AF26)","v":0},{"$f":"C22*C24","v":0},{"$f":"D22*D24","v":0},0,0,0,0,0,0,0,0,0,0,0,0,0,0,0,0,0,0,0,0,0,0,0,0,0,0,0,0]
[null,null,{"$f":"IF(C23<>0,B27+1,B27)","v":0},{"$f":"IF(D23<>0,C27+1,C27)","v":0},0,0,0,0,0,0,0,0,0,0,0,0,0,0,0,0,0,0,0,0,0,0,0,0,0,0,0,0]
["Summe der Barwerte",{"$f":"B25-B26","v":0},null,null,null,null,null,null,null,null,null,null,null,null,null,null,null,null,null,null,null,null,null,null,null,null,null,null,null,null,null,{"$f":"AF27","v":0}]
[]
["In den hellgrau hinterlegten Zellen haben Sie die Möglichkeit eigene Eingaben zu tätigen"]